[Event "26th Hit Open-A 2022"]
[Site "Nova Gorica"]
[Date "2022.09.21"]
[Round "8.41"]
[White "Vah, Denis"]
[Black "Fiolo, Costanza"]
[Result "1-0"]
[ECO "D85"]
[WhiteElo "1988"]
[BlackElo "1768"]
[Annotator "TA"]
[PlyCount "91"]
[EventDate "2022.09.16"]
[EventType "swiss"]
[EventCountry "SLO"]
[SourceTitle "playchess.com"]
[Source "ChessBase"]
[SourceQuality "1"]
[TimeControl "5400+30"]

{[%evp 18,91,6,0,56,60,60,60,77,51,93,88,89,108,114,79,125,54,80,78,79,77,74,71,74,75,98,83,81,0,64,30,6,29,161,161,341,361,353,350,364,351,335,174,570,562,541,556,927,984,916,900,751,691,1479,1472,1436,1350,1338,1341,1747,1650,1750,1669,29973,29972,29974,29976,29977,29978,29972,12719,29988,29989,29996,29997]} 1. d4 {[%emt 0:00:01]} Nf6 {[%emt 0:00:23]} 2. c4 {[%emt 0:00:05]} g6 {[%emt 0:00:11]} 3. Nc3 {[%emt 0:00:03]} d5 {[%emt 0:00:10]} 4. cxd5 {[%emt 0:00:03]} Nxd5 {[%emt 0:00:20]} 5. e4 {[%emt 0:00:07]} Nxc3 {[%emt 0:00:25]} 6. bxc3 {[%emt 0:00:02]} Bg7 {[%emt 0:00:19]} 7. Nf3 {[%emt 0:00:05]} c5 {[%emt 0:00:27]} 8. h3 {[%emt 0:00:04]} O-O {[%emt 0:01:23]} 9. Be2 {[%emt 0:00:36]} Nc6 {[%emt 0:00:55]} 10. Be3 {[%emt 0:00:33]} Bd7 {[%emt 0:05:27] D85: Exchange Grünfeld: Unusual White 7th moves and lines with 7 Nf3.} ({Black should try} 10... cxd4 $11 11. cxd4 Qa5+ 12. Bd2 Qa3) 11. O-O $14 {[%emt 0:02:09]} Qc7 {[%emt 0:02:57]} 12. Rb1 {[%emt 0:02:52] [#]} Rad8 $146 {[%emt 0:03:38] White is slightly better.} ({Predecessor:} 12... Rfd8 13. Qb3 Rab8 14. d5 Na5 15. Qa3 b6 16. c4 f5 17. Qc1 fxe4 18. Ng5 Nb7 {1-0 (30) Beckett,C (2165)-Saravanan,A (1709) London 2018}) 13. d5 {[%emt 0:01:13]} Ne5 {[%emt 0:02:33]} 14. Nd2 {[%emt 0:04:12]} Bc8 {[%emt 0:04:23]} 15. f4 {[%emt 0:05:05]} Nd7 {[%emt 0:00:21]} 16. c4 {[%emt 0:00:09]} b6 {[%emt 0:03:54]} (16... e6 $142) 17. Nf3 {[%emt 0:14:41]} (17. e5 $16) 17... Nb8 {[%emt 0:06:38]} 18. Qd2 {[%emt 0:04:51]} e6 {[%emt 0:03:21]} 19. e5 {[%emt 0:03:11]} f6 {[%emt 0:04:15]} 20. d6 $36 {[%emt 0:00:39][%mdl 2048] White is in control.} Qc6 {[%emt 0:04:21] [#]} 21. Bf2 $1 {[%emt 0:21:29]} Nd7 {[%emt 0:02:20][%cal Rf6e5]} 22. Bg3 {[%emt 0:00:47] White is much more active. The black rooks are badly placed.} Bb7 {[%emt 0:01:27] aiming for ...fxe5.} 23. Qe3 {[%emt 0:00:54]} (23. Bd3 $16) 23... Qe4 {[%emt 0:04:30]} (23... fxe5 $11 24. fxe5 Rf5) 24. Qxe4 {[%emt 0:01:05]} Bxe4 {[%emt 0:00:10]} 25. Rbe1 $1 {[%emt 0:00:04]} Bxf3 {[%emt 0:01:42] This costs Black the game.} (25... Bh6 $11 {and Black is okay.}) 26. Bxf3 $18 {[%emt 0:00:38]} g5 $2 {[%emt 0:13:48]} (26... fxe5 {was necessary.} 27. fxe5 Rf5) 27. exf6 {[%emt 0:02:40]} Bxf6 {[%emt 0:03:13]} 28. fxg5 {[%emt 0:00:44]} ({Not} 28. Rxe6 gxf4 29. Bh2 (29. Bxf4 Bd4+ 30. Be3 Rf6 $16) 29... Be5 $16) 28... Bd4+ {[%emt 0:02:59]} 29. Kh1 {[%emt 0:00:29]} e5 {[%emt 0:01:40]} 30. Re2 {[%emt 0:06:37]} (30. Bd5+ $142 Kg7 31. Kh2) 30... Nb8 $2 {[%emt 0:06:19]} (30... Kg7 31. Rfe1 Rf5) 31. Bxe5 {[%emt 0:00:57] [#] Intending Bd5+ and mate.} Bxe5 {[%emt 0:01:24]} 32. Rxe5 {[%emt 0:00:09]} Rxd6 {[%emt 0:00:23]} 33. Bd5+ {[%emt 0:00:09]} Rxd5 {[%emt 0:01:51]} 34. Rxf8+ {[%emt 0:00:01]} Kxf8 {[%emt 0:00:18]} 35. Rxd5 {[%emt 0:00:59][%mdl 4096] Endgame Strongly threatening Rd8+. KR-KN} Kg7 {[%emt 0:00:16]} 36. g4 {[%emt 0:00:19]} Nc6 {[%emt 0:02:39]} 37. Rd7+ {[%emt 0:00:51]} Kg8 {[%emt 0:00:00]} 38. Kg2 {[%emt 0:00:30]} a5 {[%emt 0:02:07]} 39. Rb7 {[%emt 0:00:32]} Nb4 {[%emt 0:01:03]} 40. Rxb6 {[%emt 0:00:44]} Nxa2 {[%emt 0:00:30]} 41. Ra6 {[%emt 0:00:06]} Nc3 {[%emt 0:02:16]} 42. Rxa5 {[%emt 0:00:26]} Ne4 {[%emt 0:00:29]} 43. h4 {[%emt 0:00:31]} Kf7 {[%emt 0:00:43]} 44. Ra7+ {[%emt 0:00:11]} (44. Kf3 $142 Nc3 45. Rxc5 Ke6 46. Rc7 Nd1 47. Rxh7 Nb2 48. c5 Nc4 49. c6) 44... Kg6 {[%emt 0:00:28]} 45. Kf3 {[%emt 0:00:09]} Nd2+ {[%emt 0:00:37]} 46. Kf4 {[%emt 0:00:04] Weighted Error Value: White=0.23 (precise) /Black=0.71} 1-0